[Event "Championnat d'Europe de Blitz"]
[Date "2024.12.09"]
[White "Mihov, Filip"]
[Black "Gatineau, Yovann"]
[WhiteElo "2245"]
[BlackElo "2363"]
[Round "9.45"]
[Result "0-1"]
[TimeControl "180+2"]

1. d4 {[%emt 00:14:01] [%clk 00:03:01]} d5 {[%emt 00:00:01] [%clk 00:03:04]} 2.
Nf3 {[%emt 00:00:06] [%clk 00:02:56]} e6 {[%clk 00:03:05]} 3. g3 {[%emt
00:00:04] [%clk 00:02:55]} c5 {[%emt 00:00:03] [%clk 00:03:05]} 4. Bg2 {[%emt
00:00:04] [%clk 00:02:53]} Nf6 {[%emt 00:00:03] [%clk 00:03:04]} 5. O-O {[%emt
00:00:04] [%clk 00:02:50]} Nc6 {[%clk 00:03:06]} 6. c4 {[%emt 00:00:04] [%clk
00:02:48]} cxd4 {[%emt 00:00:19] [%clk 00:02:49]} 7. Nxd4 {[%emt 00:00:02] [%clk
00:02:48]} Be7 {[%clk 00:02:50]} 8. Nc3 {[%emt 00:00:14] [%clk 00:02:35]} O-O
{[%emt 00:00:04] [%clk 00:02:49]} 9. cxd5 {[%emt 00:00:03] [%clk 00:02:34]} exd5
{[%emt 00:00:01] [%clk 00:02:50]} 10. Bf4 {[%emt 00:00:04] [%clk 00:02:31]} Be6
{[%emt 00:00:08] [%clk 00:02:44]} 11. Qa4 {[%emt 00:00:09] [%clk 00:02:25]} Qb6
{[%emt 00:00:12] [%clk 00:02:34]} 12. Nxe6 {[%emt 00:00:25] [%clk 00:02:02]}
fxe6 {[%clk 00:02:35]} 13. Qb5 {[%emt 00:00:10] [%clk 00:01:54]} d4 {[%emt
00:00:49] [%clk 00:01:48]} 14. Qxb6 {[%emt 00:00:02] [%clk 00:01:54]} axb6
{[%clk 00:01:49]} 15. Nb5 {[%emt 00:00:03] [%clk 00:01:52]} e5 {[%emt 00:00:03]
[%clk 00:01:49]} 16. Bg5 {[%emt 00:00:01] [%clk 00:01:53]} Rfd8 {[%emt 00:00:15]
[%clk 00:01:36]} 17. Rfc1 {[%emt 00:00:05] [%clk 00:01:49]} Ra5 {[%emt 00:00:06]
[%clk 00:01:33]} 18. a4 {[%emt 00:00:24] [%clk 00:01:28]} Bc5 {[%emt 00:00:11]
[%clk 00:01:23]} 19. b3 {[%emt 00:00:13] [%clk 00:01:17]} d3 {[%emt 00:00:09]
[%clk 00:01:16]} 20. exd3 {[%emt 00:00:12] [%clk 00:01:07]} Rxd3 {[%clk
00:01:17]} 21. Rc3 {[%emt 00:00:13] [%clk 00:00:56]} Rd7 {[%emt 00:00:31] [%clk
00:00:48]} 22. Bh3 {[%emt 00:00:13] [%clk 00:00:44]} Rd8 {[%emt 00:00:06] [%clk
00:00:44]} 23. Rcc1 {[%emt 00:00:05] [%clk 00:00:42]} Bxf2+ {[%emt 00:00:05]
[%clk 00:00:42]} 24. Kxf2 {[%emt 00:00:11] [%clk 00:00:32]} Ne4+ {[%emt
00:00:01] [%clk 00:00:43]} 25. Ke3 {[%emt 00:00:04] [%clk 00:00:30]} Nxg5 {[%emt
00:00:01] [%clk 00:00:44]} 26. Bg2 {[%clk 00:00:31]} Nd4 {[%emt 00:00:05] [%clk
00:00:41]} 27. Rd1 {[%emt 00:00:09] [%clk 00:00:24]} Nge6 {[%emt 00:00:20] [%clk
00:00:24]} 28. Rac1 {[%emt 00:00:03] [%clk 00:00:22]} Rd7 {[%emt 00:00:06] [%clk
00:00:20]} 29. Bh3 {[%emt 00:00:18] [%clk 00:00:07]} Re7 {[%emt 00:00:14] [%clk
00:00:08]} 30. Rf1 {[%emt 00:00:03] [%clk 00:00:05]} g6 {[%emt 00:00:04] [%clk
00:00:07]} 31. Rc8+ {[%emt 00:00:02] [%clk 00:00:05]} Kg7 {[%emt 00:00:01] [%clk
00:00:08]} 32. Bxe6 {[%emt 00:00:04] [%clk 00:00:03]} Nxe6 {[%emt 00:00:01]
[%clk 00:00:09]} 33. Ke4 {[%clk 00:00:04]} Nc5+ {[%emt 00:00:03] [%clk
00:00:08]} 34. Kd5 {[%emt 00:00:02] [%clk 00:00:04]} Nxb3 {[%emt 00:00:04] [%clk
00:00:07]} 35. Kd6 {[%clk 00:00:05]} Rf7 {[%emt 00:00:02] [%clk 00:00:06]} 36.
Rxf7+ {[%emt 00:00:02] [%clk 00:00:05]} Kxf7 {[%emt 00:00:01] [%clk 00:00:08]}
37. Kxe5 {[%emt 00:00:03] [%clk 00:00:04]} Rxa4 {[%emt 00:00:02] [%clk
00:00:08]} 38. Rc7+ {[%clk 00:00:05]} Ke8 {[%emt 00:00:04] [%clk 00:00:06]} 39.
Rxh7 {[%emt 00:00:03] [%clk 00:00:05]} Ra5 {[%emt 00:00:01] [%clk 00:00:08]} 40.
Kf6 {[%emt 00:00:03] [%clk 00:00:03]} Rxb5 {[%emt 00:00:02] [%clk 00:00:08]} 41.
Kxg6 {[%emt 00:00:01] [%clk 00:00:04]} Nc5 {[%emt 00:00:05] [%clk 00:00:06]} 42.
h4 {[%clk 00:00:05]} Rb4 {[%emt 00:00:02] [%clk 00:00:06]} 43. Kf5 {[%emt
00:00:03] [%clk 00:00:04]} Rb3 {[%emt 00:00:04] [%clk 00:00:04]} 44. g4 {[%clk
00:00:05]} Rf3+ {[%emt 00:00:01] [%clk 00:00:06]} 45. Ke5 {[%clk 00:00:05]} b5
{[%emt 00:00:02] [%clk 00:00:06]} 0-1

[Site "Europe Echecs"]

[Event "Championnat d'Europe de Blitz"]
[Date "2024.12.09"]
[White "Popovic, Milos T"]
[Black "Kesidis, Odyseas"]
[WhiteElo "2334"]
[BlackElo "2241"]
[Round "9.46"]
[Result "1/2-1/2"]
[TimeControl "180+2"]

1. d4 {[%emt 00:02:07] [%clk 00:03:03]} Nf6 {[%clk 00:03:03]} 2. Bg5 {[%emt
00:00:01] [%clk 00:03:04]} d5 {[%emt 00:00:04] [%clk 00:03:01]} 3. Bxf6 {[%emt
00:00:02] [%clk 00:03:04]} exf6 {[%emt 00:00:01] [%clk 00:03:02]} 4. e3 {[%emt
00:00:02] [%clk 00:03:05]} c6 {[%emt 00:00:02] [%clk 00:03:02]} 5. c4 {[%clk
00:03:05]} dxc4 {[%emt 00:00:02] [%clk 00:03:02]} 6. Bxc4 {[%emt 00:00:02] [%clk
00:03:05]} Bd6 {[%emt 00:00:01] [%clk 00:03:02]} 7. Nc3 {[%emt 00:00:02] [%clk
00:03:06]} f5 {[%emt 00:00:04] [%clk 00:03:00]} 8. Nf3 {[%emt 00:00:03] [%clk
00:03:06]} Nd7 {[%emt 00:00:05] [%clk 00:02:57]} 9. Bd3 {[%emt 00:00:07] [%clk
00:03:01]} g6 {[%emt 00:00:01] [%clk 00:02:57]} 10. h3 {[%emt 00:00:02] [%clk
00:03:01]} Qe7 {[%emt 00:00:04] [%clk 00:02:55]} 11. Qc2 {[%emt 00:00:06] [%clk
00:02:57]} Nf6 {[%emt 00:00:02] [%clk 00:02:55]} 12. O-O-O {[%emt 00:00:07]
[%clk 00:02:52]} O-O {[%emt 00:00:16] [%clk 00:02:41]} 13. Rdg1 {[%emt 00:00:01]
[%clk 00:02:53]} b5 {[%emt 00:00:07] [%clk 00:02:37]} 14. g4 {[%clk 00:02:54]}
b4 {[%emt 00:00:01] [%clk 00:02:38]} 15. Na4 {[%emt 00:00:18] [%clk 00:02:37]}
f4 {[%emt 00:00:08] [%clk 00:02:32]} 16. e4 {[%emt 00:00:02] [%clk 00:02:37]}
Bc7 {[%emt 00:00:46] [%clk 00:01:49]} 17. Nc5 {[%emt 00:00:02] [%clk 00:02:37]}
Nd7 {[%emt 00:00:09] [%clk 00:01:42]} 18. h4 {[%emt 00:00:10] [%clk 00:02:28]}
Nxc5 {[%emt 00:00:02] [%clk 00:01:43]} 19. dxc5 {[%clk 00:02:29]} a5 {[%emt
00:00:11] [%clk 00:01:34]} 20. h5 {[%emt 00:00:39] [%clk 00:01:51]} a4 {[%emt
00:00:02] [%clk 00:01:35]} 21. hxg6 {[%clk 00:01:52]} fxg6 {[%emt 00:00:01]
[%clk 00:01:36]} 22. Nd4 {[%emt 00:00:20] [%clk 00:01:34]} b3 {[%emt 00:00:02]
[%clk 00:01:36]} 23. Qc4+ {[%emt 00:00:02] [%clk 00:01:33]} Kh8 {[%emt 00:00:20]
[%clk 00:01:18]} 24. axb3 {[%emt 00:00:09] [%clk 00:01:27]} Ba6 {[%emt 00:00:04]
[%clk 00:01:16]} 25. Qc3 {[%emt 00:00:03] [%clk 00:01:24]} Be5 {[%emt 00:00:06]
[%clk 00:01:13]} 26. Nxc6 {[%emt 00:00:22] [%clk 00:01:04]} Bxc3 {[%emt
00:00:06] [%clk 00:01:09]} 27. Nxe7 {[%emt 00:00:01] [%clk 00:01:05]} Bxd3
{[%emt 00:00:16] [%clk 00:00:55]} 28. Nxg6+ {[%emt 00:00:01] [%clk 00:01:06]}
Kg7 {[%emt 00:00:02] [%clk 00:00:55]} 29. Nxf8 {[%clk 00:01:07]} axb3 {[%emt
00:00:30] [%clk 00:00:27]} 30. bxc3 {[%emt 00:00:41] [%clk 00:00:28]} Ra2 {[%emt
00:00:01] [%clk 00:00:28]} 31. Rxh7+ {[%emt 00:00:03] [%clk 00:00:26]} Kxf8
{[%emt 00:00:07] [%clk 00:00:24]} 32. Rb7 {[%emt 00:00:01] [%clk 00:00:28]} Rc2+
{[%emt 00:00:02] [%clk 00:00:23]} 33. Kd1 {[%emt 00:00:02] [%clk 00:00:28]} b2
{[%emt 00:00:01] [%clk 00:00:24]} 34. f3 {[%emt 00:00:15] [%clk 00:00:15]} Rc1+
{[%emt 00:00:08] [%clk 00:00:19]} 35. Kd2 {[%clk 00:00:17]} Rxg1 {[%emt
00:00:01] [%clk 00:00:19]} 36. Rxb2 {[%emt 00:00:02] [%clk 00:00:18]} Rg2+
{[%emt 00:00:02] [%clk 00:00:18]} 37. Kc1 {[%clk 00:00:19]} Rg1+ {[%emt
00:00:03] [%clk 00:00:17]} 38. Kd2 {[%clk 00:00:21]} Rg2+ {[%emt 00:00:05] [%clk
00:00:13]} 39. Kc1 {[%emt 00:00:01] [%clk 00:00:22]} Rg1+ {[%emt 00:00:02] [%clk
00:00:14]} 40. Kd2 {[%clk 00:00:23]} Rg2+ {[%emt 00:00:01] [%clk 00:00:15]}
1/2-1/2

[Site "Europe Echecs"]

[Event "Championnat d'Europe de Blitz"]
[Date "2024.12.09"]
[White "Nakonechnyi, Oleksii"]
[Black "Perunovic, Miodrag"]
[WhiteElo "2052"]
[BlackElo "2357"]
[Round "9.47"]
[Result "0-1"]
[TimeControl "180+2"]

1. Nf3 {[%emt 00:00:34] [%clk 00:03:03]} Nf6 {[%clk 00:03:01]} 2. g3 {[%clk
00:03:05]} g6 {[%emt 00:00:03] [%clk 00:03:02]} 3. Bg2 {[%emt 00:00:02] [%clk
00:03:06]} Bg7 {[%emt 00:00:01] [%clk 00:03:02]} 4. O-O {[%emt 00:00:02] [%clk
00:03:06]} O-O {[%emt 00:00:01] [%clk 00:03:03]} 5. d4 {[%emt 00:00:01] [%clk
00:03:06]} d6 {[%emt 00:00:02] [%clk 00:03:04]} 6. b3 {[%emt 00:00:02] [%clk
00:03:07]} b5 {[%emt 00:00:09] [%clk 00:02:56]} 7. Bb2 {[%emt 00:00:01] [%clk
00:03:08]} Bb7 {[%clk 00:02:57]} 8. Nbd2 {[%clk 00:03:09]} Nbd7 {[%emt 00:00:01]
[%clk 00:02:58]} 9. c4 {[%emt 00:00:01] [%clk 00:03:10]} bxc4 {[%clk 00:02:59]}
10. Nxc4 {[%emt 00:00:02] [%clk 00:03:11]} a5 {[%clk 00:03:00]} 11. a4 {[%emt
00:00:15] [%clk 00:02:58]} c5 {[%emt 00:00:01] [%clk 00:03:01]} 12. Rc1 {[%emt
00:00:04] [%clk 00:02:56]} Ra6 {[%emt 00:00:03] [%clk 00:03:00]} 13. Re1 {[%emt
00:00:07] [%clk 00:02:51]} Qa8 {[%emt 00:00:01] [%clk 00:03:00]} 14. e3 {[%emt
00:00:06] [%clk 00:02:48]} Rc8 {[%emt 00:00:02] [%clk 00:03:00]} 15. Nh4 {[%emt
00:00:06] [%clk 00:02:44]} Bxg2 {[%emt 00:00:02] [%clk 00:03:00]} 16. Nxg2
{[%emt 00:00:02] [%clk 00:02:45]} cxd4 {[%emt 00:00:04] [%clk 00:02:58]} 17.
Bxd4 {[%emt 00:00:20]} Rac6 {[%clk 00:02:41]} 18. Bb2 {[%emt 00:00:11] [%clk
00:02:36]} h5 {[%emt 00:00:15] [%clk 00:02:27]} 19. h4 {[%emt 00:00:03] [%clk
00:02:36]} Ng4 {[%emt 00:00:21] [%clk 00:02:08]} 20. Bxg7 {[%emt 00:00:08] [%clk
00:02:30]} Kxg7 {[%emt 00:00:01] [%clk 00:02:09]} 21. Qd4+ {[%emt 00:00:04]
[%clk 00:02:28]} Kg8 {[%emt 00:00:11] [%clk 00:02:00]} 22. Rcd1 {[%emt 00:00:32]
[%clk 00:01:59]} Nde5 {[%emt 00:00:04] [%clk 00:01:57]} 23. Nd2 {[%emt 00:00:01]
[%clk 00:02:00]} Rc2 {[%emt 00:00:04] [%clk 00:01:56]} 24. Kf1 {[%emt 00:00:26]
[%clk 00:01:35]} Nh2+ {[%emt 00:00:03] [%clk 00:01:55]} 25. Ke2 {[%emt 00:00:04]
[%clk 00:01:32]} Qxg2 {[%emt 00:00:03] [%clk 00:01:55]} 26. e4 {[%emt 00:00:06]
[%clk 00:01:28]} Qf3# {[%emt 00:00:02] [%clk 00:01:54]} 0-1

[Site "Europe Echecs"]

[Event "Championnat d'Europe de Blitz"]
[Date "2024.12.09"]
[White "Kiratzopoulos, Efthimios"]
[Black "Aizenberg, Benny"]
[WhiteElo "2193"]
[BlackElo "2425"]
[Round "9.48"]
[Result "0-1"]
[TimeControl "180+2"]

1. d4 {[%emt 00:00:02] [%clk 00:03:02]} f5 {[%emt 00:00:02] [%clk 00:03:03]} 2.
Nf3 {[%emt 00:00:03] [%clk 00:03:01]} Nf6 {[%emt 00:00:01] [%clk 00:03:04]} 3.
Bg5 {[%emt 00:00:24] [%clk 00:02:39]} d5 {[%emt 00:00:16] [%clk 00:02:50]} 4.
Nbd2 {[%emt 00:00:02] [%clk 00:02:38]} Nc6 {[%emt 00:00:05] [%clk 00:02:47]} 5.
e3 {[%emt 00:00:17] [%clk 00:02:24]} Be6 {[%emt 00:00:13] [%clk 00:02:36]} 6. c4
{[%emt 00:00:11] [%clk 00:02:15]} dxc4 {[%emt 00:00:19] [%clk 00:02:19]} 7. Bxc4
{[%emt 00:00:02] [%clk 00:02:15]} Bxc4 {[%emt 00:00:01] [%clk 00:02:20]} 8. Nxc4
{[%emt 00:00:02] [%clk 00:02:15]} Ne4 {[%emt 00:00:02] [%clk 00:02:20]} 9. Nfe5
{[%emt 00:00:28] [%clk 00:01:49]} Nxe5 {[%emt 00:00:17] [%clk 00:02:05]} 10.
Nxe5 {[%clk 00:01:50]} Nxg5 {[%emt 00:00:01] [%clk 00:02:06]} 11. Qh5+ {[%clk
00:01:51]} g6 {[%emt 00:00:01] [%clk 00:02:07]} 12. Qxg5 {[%emt 00:00:02] [%clk
00:01:51]} Qd6 {[%emt 00:00:06] [%clk 00:02:02]} 13. O-O {[%emt 00:00:09] [%clk
00:01:45]} Bg7 {[%emt 00:00:01] [%clk 00:02:03]} 14. Nc4 {[%emt 00:00:07] [%clk
00:01:39]} Qe6 {[%emt 00:00:07] [%clk 00:01:58]} 15. Rac1 {[%emt 00:00:09] [%clk
00:01:32]} O-O {[%emt 00:00:02] [%clk 00:01:58]} 16. b3 {[%emt 00:00:04] [%clk
00:01:31]} c6 {[%clk 00:02:00]} 17. Rfd1 {[%emt 00:00:05] [%clk 00:01:27]} Rad8
{[%emt 00:00:05] [%clk 00:01:56]} 18. h4 {[%emt 00:00:14] [%clk 00:01:15]} f4
{[%emt 00:00:19] [%clk 00:01:39]} 19. h5 {[%emt 00:00:21] [%clk 00:00:56]} Rd5
{[%emt 00:00:07] [%clk 00:01:34]} 20. Ne5 {[%emt 00:00:37] [%clk 00:00:21]} Bxe5
{[%emt 00:00:04] [%clk 00:01:32]} 21. e4 {[%clk 00:00:22]} Rxd4 {[%emt 00:00:03]
[%clk 00:01:32]} 22. Rxd4 {[%emt 00:00:04] [%clk 00:00:20]} Bxd4 {[%emt
00:00:02] [%clk 00:01:33]} 23. hxg6 {[%clk 00:00:20]} Qxg6 {[%emt 00:00:04]
[%clk 00:01:31]} 24. Qxe7 {[%emt 00:00:03] [%clk 00:00:19]} f3 {[%emt 00:00:02]
[%clk 00:01:31]} 0-1

[Site "Europe Echecs"]

[Event "Championnat d'Europe de Blitz"]
[Date "2024.12.09"]
[White "Pavlidou, Ekaterini"]
[Black "Danov, Lyubomir"]
[WhiteElo "2160"]
[BlackElo "2297"]
[Round "9.49"]
[Result "0-1"]
[TimeControl "180+2"]

1. d4 {[%emt 00:00:02] [%clk 00:03:02]} d5 {[%emt 00:00:01] [%clk 00:03:03]} 2.
c4 {[%emt 00:00:01] [%clk 00:03:03]} e6 {[%emt 00:00:01] [%clk 00:03:04]} 3. Nc3
{[%emt 00:00:01] [%clk 00:03:04]} c6 {[%emt 00:00:01] [%clk 00:03:06]} 4. e3
{[%emt 00:00:07] [%clk 00:02:58]} f5 {[%emt 00:00:03] [%clk 00:03:04]} 5. Nf3
{[%emt 00:00:07] [%clk 00:02:53]} Nf6 {[%emt 00:00:03] [%clk 00:03:04]} 6. Bd3
{[%emt 00:00:17] [%clk 00:02:38]} Bd6 {[%emt 00:00:02] [%clk 00:03:04]} 7. h3
{[%emt 00:00:06] [%clk 00:02:34]} O-O {[%emt 00:00:16] [%clk 00:02:50]} 8. Qc2
{[%clk 00:02:35]} Ne4 {[%emt 00:00:05] [%clk 00:02:47]} 9. h4 {[%emt 00:00:41]
[%clk 00:01:56]} Nd7 {[%emt 00:00:05] [%clk 00:02:44]} 10. c5 {[%emt 00:00:09]
[%clk 00:01:49]} Bc7 {[%emt 00:00:02] [%clk 00:02:45]} 11. Bd2 {[%emt 00:00:09]
[%clk 00:01:42]} e5 {[%emt 00:00:06] [%clk 00:02:40]} 12. dxe5 {[%emt 00:00:05]
[%clk 00:01:39]} Nxe5 {[%emt 00:00:06] [%clk 00:02:36]} 13. Nxe5 {[%emt
00:00:02] [%clk 00:01:39]} Bxe5 {[%emt 00:00:02] [%clk 00:02:37]} 14. Ne2 {[%emt
00:00:05] [%clk 00:01:36]} Qe7 {[%emt 00:00:09] [%clk 00:02:29]} 15. Rc1 {[%emt
00:00:06] [%clk 00:01:31]} Bd7 {[%emt 00:00:07] [%clk 00:02:24]} 16. b4 {[%emt
00:00:22] [%clk 00:01:12]} Be8 {[%emt 00:00:09] [%clk 00:02:18]} 17. Rh3 {[%emt
00:00:16] [%clk 00:00:57]} Bh5 {[%emt 00:00:06] [%clk 00:02:14]} 18. f3 {[%clk
00:00:58]} Nxd2 {[%emt 00:00:11] [%clk 00:02:05]} 19. Qxd2 {[%emt 00:00:03]
[%clk 00:00:57]} f4 {[%emt 00:00:08] [%clk 00:01:59]} 20. exf4 {[%emt 00:00:13]
[%clk 00:00:46]} Bxf4 {[%emt 00:00:09] [%clk 00:01:52]} 21. Qc2 {[%emt 00:00:13]
[%clk 00:00:35]} Bxc1 {[%emt 00:00:04] [%clk 00:01:49]} 22. Qxc1 {[%emt
00:00:01] [%clk 00:00:37]} Rae8 {[%emt 00:00:06] [%clk 00:01:45]} 23. Kf1 {[%emt
00:00:04] [%clk 00:00:35]} Bg6 {[%emt 00:00:03] [%clk 00:01:44]} 24. Qd1 {[%emt
00:00:21] [%clk 00:00:16]} Bxd3 {[%emt 00:00:02] [%clk 00:01:44]} 25. Qxd3
{[%clk 00:00:18]} Qe3 {[%emt 00:00:05] [%clk 00:01:41]} 26. Qxe3 {[%emt
00:00:15] [%clk 00:00:05]} Rxe3 {[%emt 00:00:02] [%clk 00:01:41]} 27. Kf2 {[%emt
00:00:02] [%clk 00:00:05]} Ra3 {[%clk 00:01:42]} 28. Nd4 {[%emt 00:00:04] [%clk
00:00:04]} Rxa2+ {[%emt 00:00:02] [%clk 00:01:42]} 29. Kg1 {[%clk 00:00:05]} Rb2
{[%emt 00:00:06] [%clk 00:01:38]} 30. Rg3 {[%emt 00:00:02] [%clk 00:00:06]} Rxb4
{[%emt 00:00:03] [%clk 00:01:36]} 31. Ne6 {[%clk 00:00:07]} Rf7 {[%emt 00:00:03]
[%clk 00:01:35]} 32. h5 {[%emt 00:00:01] [%clk 00:00:08]} h6 {[%emt 00:00:02]
[%clk 00:01:34]} 33. f4 {[%emt 00:00:05] [%clk 00:00:06]} Rbxf4 {[%emt 00:00:10]
[%clk 00:01:26]} 34. Nxf4 {[%emt 00:00:04] [%clk 00:00:04]} Rxf4 {[%clk
00:01:27]} 35. Rb3 {[%emt 00:00:02] [%clk 00:00:05]} Rf7 {[%emt 00:00:02] [%clk
00:01:26]} 36. Ra3 {[%clk 00:00:06]} a6 {[%emt 00:00:01] [%clk 00:01:27]} 37.
Rb3 {[%emt 00:00:01] [%clk 00:00:08]} Kf8 {[%emt 00:00:01] [%clk 00:01:27]} 38.
Re3 {[%emt 00:00:02] [%clk 00:00:09]} Re7 {[%emt 00:00:02] [%clk 00:01:26]} 39.
Rf3+ {[%clk 00:00:10]} Ke8 {[%emt 00:00:01] [%clk 00:01:26]} 40. Rf4 {[%emt
00:00:02] [%clk 00:00:11]} Re5 {[%emt 00:00:04] [%clk 00:01:25]} 41. Rg4 {[%emt
00:00:01] [%clk 00:00:12]} Re7 {[%emt 00:00:02] [%clk 00:01:24]} 42. Rg6 {[%emt
00:00:05] [%clk 00:00:09]} Kd7 {[%emt 00:00:04] [%clk 00:01:23]} 43. Kf2 {[%emt
00:00:03] [%clk 00:00:08]} Kc7 {[%emt 00:00:01] [%clk 00:01:23]} 44. Rg4 {[%emt
00:00:03] [%clk 00:00:06]} b6 {[%emt 00:00:03] [%clk 00:01:23]} 45. cxb6+ {[%emt
00:00:02] [%clk 00:00:07]} Kxb6 {[%clk 00:01:24]} 46. Rb4+ {[%emt 00:00:01]
[%clk 00:00:08]} Kc5 {[%emt 00:00:02] [%clk 00:01:24]} 47. Ra4 {[%emt 00:00:01]
[%clk 00:00:09]} Ra7 {[%emt 00:00:01] [%clk 00:01:25]} 48. Kf3 {[%emt 00:00:03]
[%clk 00:00:09]} a5 {[%emt 00:00:01] [%clk 00:01:26]} 49. Kf4 {[%clk 00:00:10]}
Kb5 {[%clk 00:01:27]} 50. Ra1 {[%clk 00:00:11]} a4 {[%clk 00:01:28]} 51. Kf5
{[%clk 00:00:12]} a3 {[%emt 00:00:02] [%clk 00:01:29]} 52. Kg6 {[%clk 00:00:12]}
a2 {[%emt 00:00:03] [%clk 00:01:29]} 53. g4 {[%emt 00:00:01] [%clk 00:00:13]}
Kb4 {[%clk 00:01:29]} 54. Rxa2 {[%emt 00:00:05] [%clk 00:00:10]} Rxa2 {[%emt
00:00:01] [%clk 00:01:30]} 55. Kxg7 {[%emt 00:00:01] [%clk 00:00:11]} Rg2 {[%emt
00:00:02] [%clk 00:01:30]} 0-1

[Site "Europe Echecs"]

[Event "Championnat d'Europe de Blitz"]
[Date "2024.12.09"]
[White "Dobrikov, Marco"]
[Black "Rigopoulos-Tsigkos, Alexandros"]
[WhiteElo "2407"]
[BlackElo "2068"]
[Round "9.50"]
[Result "1-0"]
[TimeControl "180+2"]

1. e4 {[%emt 00:00:01] [%clk 00:03:03]} c5 {[%emt 00:00:01] [%clk 00:03:03]} 2.
Nf3 {[%emt 00:00:04] [%clk 00:03:01]} e6 {[%emt 00:00:01] [%clk 00:03:04]} 3. c4
{[%emt 00:00:01] [%clk 00:03:02]} a6 {[%emt 00:00:01] [%clk 00:03:05]} 4. Nc3
{[%emt 00:00:01] [%clk 00:03:04]} Qc7 {[%clk 00:03:06]} 5. Be2 {[%emt 00:00:06]
[%clk 00:03:00]} b6 {[%emt 00:00:03] [%clk 00:03:05]} 6. O-O {[%emt 00:00:02]
[%clk 00:03:00]} Bb7 {[%clk 00:03:06]} 7. Re1 {[%emt 00:00:17] [%clk 00:02:44]}
d6 {[%emt 00:00:02] [%clk 00:03:07]} 8. d4 {[%emt 00:00:01] [%clk 00:02:45]}
cxd4 {[%clk 00:03:07]} 9. Nxd4 {[%emt 00:00:01] [%clk 00:02:46]} Nd7 {[%emt
00:00:03] [%clk 00:03:06]} 10. Be3 {[%emt 00:00:09] [%clk 00:02:40]} Ngf6 {[%emt
00:00:02] [%clk 00:03:05]} 11. f3 {[%emt 00:00:02] [%clk 00:02:40]} Be7 {[%emt
00:00:01] [%clk 00:03:06]} 12. Rc1 {[%emt 00:00:01] [%clk 00:02:41]} O-O {[%emt
00:00:04] [%clk 00:03:04]} 13. Qd2 {[%emt 00:00:02] [%clk 00:02:42]} Rac8 {[%emt
00:00:06] [%clk 00:02:59]} 14. Bf1 {[%emt 00:00:02] [%clk 00:02:43]} Ne5 {[%emt
00:00:03] [%clk 00:02:57]} 15. b3 {[%emt 00:00:05] [%clk 00:02:41]} Kh8 {[%emt
00:00:14] [%clk 00:02:44]} 16. Red1 {[%emt 00:00:02] [%clk 00:02:41]} Rg8 {[%emt
00:00:05] [%clk 00:02:41]} 17. Qf2 {[%emt 00:00:37] [%clk 00:02:06]} Ned7 {[%emt
00:00:12] [%clk 00:02:31]} 18. a4 {[%emt 00:00:18] [%clk 00:01:50]} g5 {[%emt
00:00:05] [%clk 00:02:28]} 19. b4 {[%emt 00:00:06] [%clk 00:01:47]} g4 {[%emt
00:00:08] [%clk 00:02:21]} 20. Kh1 {[%emt 00:00:02] [%clk 00:01:48]} gxf3 {[%emt
00:00:06] [%clk 00:02:17]} 21. gxf3 {[%emt 00:00:01] [%clk 00:01:49]} Qd8 {[%emt
00:00:20] [%clk 00:01:58]} 22. Nb3 {[%emt 00:00:06] [%clk 00:01:45]} Nh5 {[%emt
00:00:06] [%clk 00:01:55]} 23. a5 {[%emt 00:00:08] [%clk 00:01:39]} Bh4 {[%emt
00:00:06] [%clk 00:01:50]} 24. Qd2 {[%emt 00:00:06] [%clk 00:01:35]} Ng3+ {[%emt
00:00:22] [%clk 00:01:30]} 25. hxg3 {[%emt 00:00:02] [%clk 00:01:35]} Bxg3
{[%emt 00:00:02] [%clk 00:01:30]} 26. Bg1 {[%emt 00:00:20] [%clk 00:01:17]} Qh4+
{[%emt 00:00:20] [%clk 00:01:12]} 27. Bh2 {[%emt 00:00:01] [%clk 00:01:18]} Ne5
{[%emt 00:00:06] [%clk 00:01:08]} 28. Nd4 {[%emt 00:00:08] [%clk 00:01:13]} bxa5
{[%emt 00:00:14] [%clk 00:00:56]} 29. bxa5 {[%emt 00:00:01] [%clk 00:01:14]} Bf4
{[%emt 00:00:09] [%clk 00:00:48]} 30. Qxf4 {[%emt 00:00:14] [%clk 00:01:02]} Qe7
{[%emt 00:00:11] [%clk 00:00:40]} 31. Be2 {[%emt 00:00:05] [%clk 00:00:58]} Rg6
{[%emt 00:00:05] [%clk 00:00:37]} 32. Rg1 {[%emt 00:00:01] [%clk 00:00:59]} Rf6
{[%emt 00:00:02] [%clk 00:00:38]} 33. Qh4 {[%emt 00:00:05] [%clk 00:00:55]} Nxc4
{[%emt 00:00:08] [%clk 00:00:33]} 34. Bxc4 {[%emt 00:00:03] [%clk 00:00:54]}
Rxc4 {[%emt 00:00:01] [%clk 00:00:33]} 35. Nce2 {[%emt 00:00:04] [%clk
00:00:52]} Rxc1 {[%emt 00:00:14] [%clk 00:00:21]} 36. Rxc1 {[%clk 00:00:53]} Kg7
{[%emt 00:00:02] [%clk 00:00:21]} 37. Rg1+ {[%emt 00:00:02] [%clk 00:00:53]} Kf8
{[%emt 00:00:01] [%clk 00:00:22]} 38. Qxh7 {[%emt 00:00:05] [%clk 00:00:50]} Ke8
{[%emt 00:00:01] [%clk 00:00:23]} 39. Qg8+ {[%emt 00:00:02] [%clk 00:00:50]} Kd7
{[%emt 00:00:01] [%clk 00:00:24]} 40. Qb8 {[%emt 00:00:01] [%clk 00:00:51]} Bc8
{[%emt 00:00:11] [%clk 00:00:15]} 41. Rc1 {[%emt 00:00:05] [%clk 00:00:48]} Qd8
{[%emt 00:00:09] [%clk 00:00:09]} 42. Qxd6+ {[%emt 00:00:03] [%clk 00:00:46]}
Ke8 {[%emt 00:00:02] [%clk 00:00:10]} 43. Qb8 {[%emt 00:00:08] [%clk 00:00:39]}
Kd7 {[%emt 00:00:03] [%clk 00:00:10]} 44. Rc7+ {[%clk 00:00:40]} 1-0

[Site "Europe Echecs"]